Workbook

Sheet ReadMe-Orientation
A3: Manure Balance Tool
A5: Description of this tool
A21: Author | B21: Dennis Buckmaster, Professor & Dean's Fellow for Digital Agriculture and Tamilee Nennich, former Purdue faculty
A22: Affiliation | B22: Purdue University, Department of Agricultural & Biological Engineering and Animal Sciences
A23: Date | B23: Updated December, 2021
A24: URL to acquire | B24: https://engineering.purdue.edu/~dbuckmas/outreach/Manure_Balance_Tool.xlsm
A25: Related tools: | B25: Fertilizer Tools | D25: https://engineering.purdue.edu/~dbuckmas/outreach/Fertilizer_tools.xlsx
B26: Manure Records | D26: https://docs.google.com/spreadsheets/d/11MEMOHU-8uQVqdlFJPyIG5cn6ZEOYxCiEzqY7ohBqak/edit?usp=sharing

Sheet single pen
B1: INPUT SECTION : ANIMALS AND CROPS
B2: Select an animal from the drop down menu
A3: at | B3: animal type | C3: 3
A4: n | B4: Number of animals | C4: 2
A5: mcp | B5: Manure collection period | C5: 365 | D5: days/year
B6: Select the bedding used from the menu
A7: bt | B7: bedding type | C7: 4
A8: ab | B8: Amount of bedding used per animal | C8: 2 | D8: tons/year/animal
A9: a | B9: Total crop area | C9: 2 | D9: acres
A10: eyg | B10: Expected yield on grassland | C10: 3 | D10: tons hay/acre
A11: eyc | B11: Expected yield on corn | C11: 150 | D11: bu/acre
A12: eys | B12: Expected yield on soybeans | C12: 40 | D12: bu/acre
A13: pg | B13: Percentage of land area in grassland | C13: 100 | D13: %
A14: pc | B14: Percentage of land area in corn | C14: 0 | D14: %
B15: OUTPUT SECTION
A16: ps | B16: Percentage of land area in soybeans | C16: =100-C14-C13 -> 0 | D16: % | E16: =IF(C14+C13>100,"Land area percentages cannot exceed 100%","") -> 
B17: Manure Nutrient Production
A18: Np | B18: Nitrogen production | C18: =n*VLOOKUP(at,animals,4)*mcp + ab*n*VLOOKUP(bt,bedding,4) -> 262.4183007 | D18: lb/year
A19: Pp | B19: Phosphorus (P2O5) production | C19: =n*VLOOKUP(at,animals,5)*mcp + ab*n*VLOOKUP(bt,bedding,5) -> 79.76084967 | D19: lb/year
A20: Mp | B20: Total manure and bedding produced | C20: =((n*VLOOKUP(at,animals,3)*mcp)/62)*0.037037 + (ab*n/VLOOKUP(bt,bedding,3))*2000 -> 30.59863989 | D20: yd3/year
B22: Crop Nutrient Demand
A23: Ndg | B23: nitrogen demand for grassland | C23: =eyg*VLOOKUP(1,crops,3) -> 120 | D23: lb/acre/year
A24: Pdg | B24: phosphorus demand for grassland | C24: =eyg*VLOOKUP(1,crops,4) -> 39 | D24: lb/acre/year
A25: Ndc | B25: nitrogen demand for corn | C25: =eyc*VLOOKUP(2,crops,3) -> 135 | D25: lb/acre/year
A26: Pdc | B26: phosphorus demand for corn | C26: =eyc*VLOOKUP(2,crops,4) -> 55.5 | D26: lb/acre/year
A27: Nds | B27: nitrogen demand for soybeans | C27: =eys*VLOOKUP(3,crops,3) -> 152 | D27: lb/acre/year
A28: Pds | B28: phosphorus demand for soybeans | C28: =eys*VLOOKUP(3,crops,4) -> 32 | D28: lb/acre/year
A30: Ndmt | B30: nitrogen demand for current crop mix | C30: =a*(pg*Ndg+pc*Ndc+ps*Nds)/100 -> 240 | D30: lb/year
A31: Pdmt | B31: phosphorus demand for current crop mix | C31: =a*(pg*Pdg+pc*Pdc+ps*Pds)/100 -> 78 | D31: lb/year
A32: Ndgt | B32: nitrogen demand for all grassland | C32: =a*Ndg -> 240 | D32: lb/year
A33: Pdgt | B33: phosphorus demand for all grassland | C33: =a*Pdg -> 78 | D33: lb/year
A34: Ndct | B34: nitrogen demand for all corn | C34: =a*Ndc -> 270 | D34: lb/year
A35: Pcdt | B35: phosphorus demand for all corn | C35: =a*Pdc -> 111 | D35: lb/year
A36: Ndst | B36: nitrogen demand for all soybeans | C36: =a*Nds -> 304 | D36: lb/year
A37: Pdst | B37: phosphorus demand for all soybeans | C37: =a*Pds -> 64 | D37: lb/year
A39: Ne | B39: nitrogen difference | C39: =Np-Ndmt -> 22.41830065 | D39: lb/year
A40: Pe | B40: phosphorus difference | C40: =Pp-Pdmt -> 1.760849673 | D40: lb/year
A41: Me | B41: maximum difference | C41: =MAX(Ne,Pe) -> 22.41830065 | D41: lb/year
B43: Your land area is | C43: =IF(C41<=0,"SUFFICIENT", "NOT SUFFICIENT") -> NOT SUFFICIENT | E43: to deal with the nutrients produced.
B45: Nitrogen
B46: Phosphorus
B61: Manure Nutrient Checker by Nennich and Buckmaster, Purdue University, February 2014.
B62: Downloaded from : https://engineering.purdue.edu/~dbuckmas/outreach/Manure_Balance_Tool.xlsm

Sheet Manure Excretion Estimates
A1: 1 | B1: 2 | C1: 3 | D1: 4 | E1: 5
C2: Total Manure | D2: Nitrogen | E2: P2O5 | F2: Phosphorus
C3: lb/animal/d | D3: lb/animal/d | E3: lb/animal/d | F3: lb/animal/d
A4: 1 | B4: Beef - Cow | C4: 70 | D4: 0.42 | E4: =F4*2.29 -> 0.22213 | F4: 0.097
A5: 2 | B5: Beef - Cow/Calf pair | C5: 83 | D5: 0.49 | E5: =F5*2.29 -> 0.27213 | F5: 0.1188340611
A6: 3 | B6: Beef - Steer | C6: 64.05228758 | D6: 0.3594771242 | E6: 0.1092614379 | F6: 0.0477124183
A7: 4 | B7: Beef - Veal | C7: 7.8 | D7: 0.033 | E7: 0.022671 | F7: 0.0099
A8: 5 | B8: Dairy - Calf | C8: 19 | D8: 0.14 | E8: 0.05038 | F8: 0.022
A9: 6 | B9: Dairy - Cow | C9: 150 | D9: 0.99 | E9: 0.3893 | F9: 0.17
A10: 7 | B10: Dairy - Dry cow | C10: 83 | D10: 0.5 | E10: 0.15114 | F10: 0.066
A11: 8 | B11: Dairy - Heifer | C11: 48 | D11: 0.26 | E11: 0.10076 | F11: 0.044
A12: 9 | B12: Goats | C12: 3.2 | D12: 0.032 | E12: 0.01832 | F12: 0.008
A13: 10 | B13: Horse - Intense exercise | C13: 57 | D13: 0.34 | E13: 0.16717 | F13: 0.073
A14: 11 | B14: Horse - Sedentary | C14: 56 | D14: 0.2 | E14: 0.06641 | F14: 0.029
A15: 12 | B15: Poultry - Broiler | C15: 0.2291666667 | D15: 0.0025 | E15: 0.001669791667 | F15: 0.0007291666667
A16: 13 | B16: Poultry - Duck | C16: 0.358974359 | D16: 0.00358974359 | E16: 0.002818461538 | F16: 0.001230769231
A17: 14 | B17: Poultry - Layer | C17: 0.19 | D17: 0.0035 | E17: 0.002519 | F17: 0.0011
A18: 15 | B18: Poultry - Turkey (females) | C18: 0.3619047619 | D18: 0.005428571429 | E18: 0.00348952381 | F18: 0.001523809524
A19: 16 | B19: Poultry - Turkey (males) | C19: 0.5864661654 | D19: 0.009022556391 | E19: 0.006198496241 | F19: 0.002706766917
A20: 17 | B20: Sheep | C20: 4 | D20: 0.04 | E20: 0.0229 | F20: 0.01
A21: 18 | B21: Swine - Boar | C21: 8.4 | D21: 0.061 | E21: 0.04809 | F21: 0.021
A22: 19 | B22: Swine - Finishing pig | C22: 10 | D22: 0.08333333333 | E22: 0.03244166667 | F22: 0.01416666667
A23: 20 | B23: Swine - Gestating sow | C23: 11 | D23: 0.071 | E23: 0.0458 | F23: 0.02
A24: 21 | B24: Swine - Lactating sow | C24: 25 | D24: 0.19 | E24: 0.12595 | F24: 0.055
A25: 22 | B25: Swine - Nursery pig | C25: 2.416666667 | D25: 0.02527777778 | E25: 0.009541666667 | F25: 0.004166666667

Sheet Crop Requirements
A1: 1 | B1: 2 | C1: 3 | D1: 4 | E1: 5
B2: Crop Type | C2: Nitrogen | D2: P2O5
C3: lb removed/unit yield | D3: lb removed/unit yield | E3: yield unit
A4: 1 | B4: Pasture/Forage/Grassland | C4: 40 | D4: 13 | E4: tons hay equivalent/acre
A5: 2 | B5: Corn | C5: 0.9 | D5: 0.37 | E5: bu/acre
A6: 3 | B6: Soybeans | C6: 3.8 | D6: 0.8 | E6: bu/acre

Sheet Bedding Estimates
A1: 1 | B1: 2 | C1: 3 | D1: 4 | E1: 5
B2: Bedding Type | C2: Density | D2: Nitrogen | E2: P2O5
C3: lbs/yd3 | D3: lb/ton | E3: lb/ton
A4: 1 | B4: Straw | C4: =(190+1700)/2 -> 945 | D4: 13 | E4: 3.3
A5: 2 | B5: Sawdust | C5: =(540+1700)/2 -> 1120 | D5: 5 | E5: 0.4
A6: 3 | B6: Corn stalks | C6: =(215+1700)/2 -> 957.5 | D6: 22 | E6: 8.2
A7: 4 | B7: Sand | C7: 3000 | D7: 0 | E7: 0
